fUSD/lending_fUSD_20260418
["ID","MTS","AMOUNT","RATE_DAILY","PERIOD"]
[420731228,1776507052224,-152.0,9.8e-05,2]
[420731229,1776507052235,-1531.0,9.8e-05,2]
[420731230,1776507052245,-152.0,9.8e-05,2]
[420731231,1776507052255,-1531.0,9.8e-05,2]
[420731232,1776507052264,-152.0,9.8e-05,2]
[420731233,1776507052274,-233.63938067,9.8e-05,2]
[420731234,1776507052284,-1531.0,9.8e-05,2]
[420731235,1776507052294,-1531.0,9.8e-05,2]
[420731236,1776507052304,-1531.0,9.8e-05,2]
[420731237,1776507052314,-1531.0,9.8e-05,2]
[420731238,1776507052340,-1531.0,9.8e-05,2]
[420731239,1776507052360,-1531.0,9.8e-05,2]
[420731240,1776507052375,-1531.0,9.8e-05,2]
[420731241,1776507052393,-1531.0,9.8e-05,2]
[420731242,1776507052411,-1531.0,9.8e-05,2]
[420731243,1776507052431,-1531.0,9.8e-05,2]
[420731244,1776507052448,-1531.0,9.8e-05,2]
[420731245,1776507052463,-1531.0,9.8e-05,2]
[420731246,1776507052477,-1531.0,9.8e-05,2]
[420731247,1776507052495,-1531.0,9.8e-05,2]
[420731248,1776507052514,-1531.0,9.8e-05,2]
[420731249,1776507052531,-1531.0,9.8e-05,2]
[420731250,1776507052550,-1531.0,9.8e-05,2]
[420731251,1776507052562,-1531.0,9.8e-05,2]
[420731252,1776507052579,-1531.0,9.8e-05,2]
[420731253,1776507052593,-1531.0,9.8e-05,2]
[420731254,1776507052611,-1531.0,9.8e-05,2]
[420731255,1776507052630,-1531.0,9.8e-05,2]
[420731256,1776507052645,-1531.0,9.8e-05,2]
[420731257,1776507052657,-1531.0,9.8e-05,2]
[420731258,1776507052673,-1531.0,9.8e-05,2]
[420731259,1776507052690,-1531.0,9.8e-05,2]
[420731260,1776507052731,-1531.0,9.8e-05,2]
[420731261,1776507052749,-1531.0,9.8e-05,2]
[420731262,1776507052766,-1531.0,9.8e-05,2]
[420731263,1776507052783,-1531.0,9.8e-05,2]
[420731264,1776507052800,-1531.0,9.8e-05,2]
[420731265,1776507052817,-1531.0,9.8e-05,2]
[420731266,1776507052834,-1531.0,9.8e-05,2]
[420731267,1776507052852,-161.0,9.8e-05,2]
[420731268,1776507052868,-1531.0,9.8e-05,2]
[420731269,1776507052886,-1531.0,9.8e-05,2]
[420731270,1776507052902,-161.0,9.8e-05,2]
[420731271,1776507052919,-211.33102601,9.8e-05,2]
[420731272,1776507052934,-1531.0,9.8e-05,2]
[420731273,1776507052951,-1531.0,9.8e-05,2]
[420731274,1776507052967,-1531.0,9.8e-05,2]
[420731275,1776507052983,-1531.0,9.8e-05,2]
[420731276,1776507053000,-1531.0,9.8e-05,2]
[420731277,1776507053016,-1531.0,9.8e-05,2]
[420731278,1776507053032,-1531.0,9.8e-05,2]
[420731279,1776507053048,-1531.0,9.8e-05,2]
[420731280,1776507053064,-1531.0,9.8e-05,2]
[420731281,1776507053081,-1531.0,9.8e-05,2]
[420731282,1776507053096,-1531.0,9.8e-05,2]
[420731283,1776507053112,-1531.0,9.8e-05,2]
[420731284,1776507053129,-1536.49321775,9.8e-05,2]
[420731285,1776507053145,-307.0,9.8e-05,2]
[420731286,1776507053160,-151.0,9.8e-05,2]
[420731287,1776507053177,-151.0,9.8e-05,2]
[420731288,1776507053192,-151.0,9.8e-05,2]
[420731289,1776507053207,-151.0,9.8e-05,2]
[420731290,1776507053222,-151.0,9.8e-05,2]
[420731291,1776507053240,-151.0,9.8e-05,2]
[420731292,1776507053256,-151.0,9.8e-05,2]
[420731293,1776507053272,-151.0,9.8e-05,2]
[420731294,1776507053287,-151.0,9.8e-05,2]
[420731295,1776507053302,-151.0,9.8e-05,2]
[420731296,1776507053317,-151.0,9.8e-05,2]
[420731297,1776507053334,-151.0,9.8e-05,2]
[420731298,1776507053349,-151.0,9.8e-05,2]
[420731299,1776507053365,-151.0,9.8e-05,2]
[420731300,1776507053382,-282.706868,9.8e-05,2]
[420731301,1776507053398,-151.0,9.8e-05,2]
[420731302,1776507053413,-151.0,9.8e-05,2]
[420731303,1776507053427,-151.0,9.8e-05,2]
[420731304,1776507053443,-5778.07243,9.8e-05,2]
[420731305,1776507053459,-4403.957407,9.8e-05,2]
[420731306,1776507053473,-500.0,9.8e-05,2]
[420731307,1776507053488,-8007.526421,9.824e-05,2]
[420731308,1776507053503,-215.0,9.841e-05,2]
[420731309,1776507053517,-500.0,9.855e-05,2]
[420731310,1776507053531,-166.66,9.881e-05,2]
[420731311,1776507053546,-500.0,9.958e-05,2]
[420731312,1776507053561,-587.0,9.994e-05,2]
[420731313,1776507053575,-24415.59793763,0.0001,2]
[420731314,1776507053608,-624.89819173,0.0001,2]
[420731315,1776507053657,-11825.0,0.0001,2]
[420731332,1776508231500,-2000.0,8.335e-05,2]
[420731333,1776508231510,-165.32,8.335e-05,2]
[420731334,1776508231519,-1613.88,8.636e-05,2]
[420731335,1776508231529,-37.80285927,8.7e-05,3]
[420731336,1776508231672,-362.19714073,8.7e-05,3]
[420731337,1776508231682,-1200.0,8.719e-05,2]
[420731338,1776508231691,-181.453,8.72e-05,2]
[420731339,1776508231701,-1785.368,8.72e-05,2]
[420731340,1776508231710,-3147.6075,8.798e-05,2]
[420731341,1776508231720,-2500.0,8.798e-05,2]
[420731342,1776508231730,-900.0,8.8e-05,3]
[420731343,1776508231740,-186.97946642,8.898e-05,2]
[420731344,1776508231750,-1400.0,8.9e-05,3]
[420731345,1776508231760,-186.97946642,8.997e-05,2]
[420731346,1776508231771,-1900.0,9e-05,3]
[420731347,1776508231780,-635.0,9.155e-05,2]
[420731348,1776508231789,-1359.0,9.174e-05,2]
[420731349,1776508231799,-10203.28322762,9.174e-05,2]
[420731350,1776508231812,-7965.50056764,9.174e-05,2]
[420731375,1776508237748,-299.7486054,9.174e-05,2]
[420731376,1776508237760,-6263.2080463,9.174e-05,2]
[420731377,1776508237808,-4537.55298167,9.174e-05,2]
[420731378,1776508237820,-7483.80136411,9.174e-05,2]
[420731379,1776508237871,-678.8255234,9.174e-05,2]
[420731380,1776508237883,-331.39424204,9.174e-05,2]
[420731381,1776508237895,-500.0,9.174e-05,2]
[420731382,1776508237910,-901.16,9.174e-05,2]
[420731383,1776508238043,-2542.91899349,9.174e-05,2]
[420731384,1776508238055,-1187.75083997,9.174e-05,2]
[420731385,1776508238068,-13084.05940635,9.174e-05,2]
[420731402,1776508241171,-35747.84887023,9.174e-05,2]
[420731403,1776508241180,-151.0,9.258e-05,2]
[420731404,1776508241190,-151.0,9.258e-05,2]
[420731405,1776508241199,-151.0,9.258e-05,2]
[420731406,1776508241210,-512.66,9.258e-05,2]
[420731407,1776508241219,-578.20924308,9.258e-05,2]
[420731408,1776508241228,-1377.42282659,9.258e-05,2]
[420731409,1776508241238,-201.93286099,9.258e-05,2]
[420731410,1776508241247,-200.0,9.258e-05,2]
[420731411,1776508241257,-695.39793187,9.258e-05,2]
[420731412,1776508241266,-174.61919141,9.258e-05,2]
[420731413,1776508241276,-204.63831655,9.258e-05,2]
[420731414,1776508241285,-743.50770149,9.258e-05,2]
[420731415,1776508241297,-2000.0,9.258e-05,2]
[420731416,1776508241306,-2000.0,9.258e-05,2]
[420731417,1776508241316,-2000.0,9.258e-05,2]
[420731418,1776508241325,-201.93286099,9.258e-05,2]
[420731419,1776508241335,-2000.0,9.258e-05,2]
[420731420,1776508241344,-2000.0,9.258e-05,2]
[420731421,1776508241353,-1610.62189726,9.258e-05,2]
[420731422,1776508241362,-201.93286099,9.258e-05,2]
[420731423,1776508241372,-296.09665615,9.258e-05,2]
[420731424,1776508241381,-279.9045709,9.258e-05,2]
[420731425,1776508241391,-245.43795164,9.292e-05,30]
[420731426,1776508241400,-368.15692747,9.305e-05,30]
[420731427,1776508241410,-2000.0,9.377e-05,2]
[420731428,1776508241419,-165.32,9.377e-05,2]
[420731429,1776508241428,-250.0,9.377e-05,2]
[420731430,1776508241438,-512.66,9.532e-05,2]
[420731431,1776508241448,-300.0,9.591e-05,2]
[420731432,1776508241460,-648.48,9.613e-05,2]
[420731433,1776508241470,-543.28952721,9.613e-05,2]
[420731434,1776508241482,-78.71047279,9.613e-05,2]
[420731435,1776508241491,-150.0,9.684e-05,2]
[420731436,1776508241500,-150.0,9.684e-05,2]
[420731437,1776508241509,-201.80070515,9.684e-05,2]
[420731438,1776508241519,-150.0,9.684e-05,2]
[420731439,1776508241529,-150.0,9.684e-05,2]
[420731440,1776508241538,-500.0,9.684e-05,2]
[420731441,1776508241554,-500.0,9.684e-05,2]
[420731442,1776508241564,-150.0,9.684e-05,2]
[420731443,1776508241574,-183.59850605,9.684e-05,2]
[420731444,1776508241584,-500.0,9.684e-05,2]
[420731445,1776508241595,-298.16572439,9.684e-05,2]
[420731446,1776508241606,-500.0,9.684e-05,2]
[420731447,1776508241617,-246.38209325,9.684e-05,2]
[420731448,1776508241626,-500.0,9.684e-05,2]
[420731449,1776508241636,-500.0,9.684e-05,2]
[420731450,1776508241646,-500.0,9.684e-05,2]
[420731451,1776508241655,-395.18165842,9.684e-05,2]
[420731452,1776508241664,-500.0,9.684e-05,2]
[420731453,1776508241675,-500.0,9.684e-05,2]
[420731454,1776508241707,-500.0,9.684e-05,2]
[420731455,1776508241725,-500.0,9.684e-05,2]
[420731456,1776508241741,-500.0,9.684e-05,2]
[420731457,1776508241759,-500.0,9.684e-05,2]
[420731458,1776508241777,-150.0,9.684e-05,2]
[420731459,1776508241797,-500.0,9.684e-05,2]
[420731460,1776508241814,-150.0,9.684e-05,2]
[420731461,1776508241830,-500.0,9.684e-05,2]
[420731462,1776508241844,-500.0,9.684e-05,2]
[420731463,1776508241862,-243.99851955,9.684e-05,2]
[420731464,1776508241878,-500.0,9.684e-05,2]
[420731465,1776508241898,-500.0,9.684e-05,2]
[420731466,1776508241915,-500.0,9.684e-05,2]
[420731467,1776508241928,-500.0,9.684e-05,2]
[420731468,1776508241945,-500.0,9.684e-05,2]
[420731469,1776508241961,-287.25227815,9.684e-05,2]
[420731470,1776508241978,-500.0,9.684e-05,2]
[420731471,1776508241996,-500.0,9.684e-05,2]
[420731472,1776508242008,-500.0,9.684e-05,2]
[420731473,1776508242053,-500.0,9.684e-05,2]
[420731474,1776508242070,-500.0,9.684e-05,2]
[420731475,1776508242088,-500.0,9.684e-05,2]
[420731476,1776508242110,-500.0,9.684e-05,2]
[420731477,1776508242132,-500.0,9.684e-05,2]
[420731478,1776508242154,-500.0,9.684e-05,2]
[420731479,1776508242175,-500.0,9.684e-05,2]
[420731480,1776508242196,-500.0,9.684e-05,2]
[420731481,1776508242217,-500.0,9.684e-05,2]
[420731482,1776508242237,-500.0,9.684e-05,2]
[420731483,1776508242257,-500.0,9.684e-05,2]
[420731484,1776508242276,-500.0,9.684e-05,2]
[420731485,1776508242296,-500.0,9.684e-05,2]
[420731486,1776508242314,-500.0,9.684e-05,2]
[420731487,1776508242333,-500.0,9.684e-05,2]
[420731489,1776508242350,-500.0,9.684e-05,2]
[420731490,1776508242368,-500.0,9.684e-05,2]
[420731491,1776508242386,-426.81359707,9.684e-05,2]
[420731493,1776508242403,-350.19016232,9.684e-05,2]
[420731495,1776508242421,-500.0,9.684e-05,2]
[420731496,1776508242438,-500.0,9.684e-05,2]
[420731497,1776508242455,-500.0,9.684e-05,2]
[420731498,1776508242471,-500.0,9.684e-05,2]
[420731499,1776508242487,-500.0,9.684e-05,2]
[420731500,1776508242505,-500.0,9.684e-05,2]
[420731501,1776508242521,-500.0,9.684e-05,2]
[420731502,1776508242537,-500.0,9.684e-05,2]
[420731506,1776508242553,-500.0,9.684e-05,2]
[420731510,1776508242568,-449.96221161,9.684e-05,2]
[420731514,1776508242585,-500.0,9.684e-05,2]
[420731518,1776508242601,-338.24470175,9.684e-05,2]
[420731520,1776508242618,-500.0,9.684e-05,2]
[420731522,1776508242634,-500.0,9.684e-05,2]
[420731523,1776508242651,-500.0,9.684e-05,2]
[420731524,1776508242672,-500.0,9.684e-05,2]
[420731525,1776508242691,-500.0,9.684e-05,2]
[420731526,1776508242707,-450.0,9.684e-05,2]
[420731527,1776508242724,-500.0,9.684e-05,2]
[420731528,1776508242740,-507.0,9.684e-05,2]
[420731529,1776508242757,-1002.0,9.733e-05,5]
[420731530,1776508242773,-808.0,9.733e-05,5]
[420731531,1776508242789,-350.0,9.744e-05,2]
[420731532,1776508242805,-2190.18623339,9.8e-05,2]
[420731533,1776508242821,-307.0,9.8e-05,2]
[420731534,1776508242836,-512.66,9.806e-05,2]
[420731535,1776508242855,-1428.38747117,9.806e-05,2]
[420731536,1776508242872,-209.40437684,9.806e-05,2]
[420731537,1776508242888,-200.0,9.806e-05,2]
[420731538,1776508242902,-181.08010149,9.806e-05,2]
[420731539,1776508242917,-771.01748645,9.806e-05,2]
[420731540,1776508242933,-209.40437684,9.806e-05,2]
[420731541,1776508242948,-209.40437684,9.806e-05,2]
[420731542,1776508242963,-290.26104003,9.806e-05,2]
[420731543,1776508242978,-200.97833936,9.821e-05,2]
[420731544,1776508242994,-410.0,9.89e-05,2]
[420731545,1776508243008,-3122.121268,9.891e-05,2]
[420731546,1776508243022,-1845.3049294,9.891e-05,2]
[420731547,1776508243036,-6724.67898451,9.891e-05,2]
[420731548,1776508243195,-610.45389952,9.891e-05,2]
[420731549,1776508243216,-438.0000005,9.891e-05,2]
[420731550,1776508243264,-6428.55444967,9.891e-05,2]
[420731551,1776508243280,-300.02,9.907e-05,2]
[420731552,1776508243295,-160.07642314,9.973e-05,2]
[420731553,1776508243311,-500.0,9.973e-05,2]
[420731554,1776508243328,-500.32969981,9.973e-05,2]
[420731555,1776508243342,-177504.29560492,0.0001,2]
[420731556,1776508243361,-960.86495858,0.0001,2]
[420731559,1776508245725,-403.51388527,9.658e-05,2]
[420731560,1776508245773,-945.48611473,9.658e-05,2]
[420731561,1776508245789,-817.90458892,9.782e-05,2]
[420731562,1776508245802,-1460.1241556,9.8e-05,2]
[420731563,1776508245817,-470.69559117,0.0001,2]
[420731564,1776508245890,-865.95800114,0.0001,2]
[420731565,1776508245909,-19515.85852078,0.0001,2]
[420731566,1776508245923,-561.10535588,0.0001,2]
[420731567,1776508245936,-6780.89489887,0.0001,2]
[420731568,1776508245950,-13364.97648508,0.0001,2]
[420731569,1776508245964,-670.09817127,0.0001,2]
[420731570,1776508245978,-182.17048204,0.0001,2]
[420731571,1776508245991,-203.57958681,0.0001,2]
[420731572,1776508246004,-321.39999726,0.0001,2]
[420731573,1776508246018,-288.99367149,0.0001,2]
[420731574,1776508246032,-307.74019339,0.0001,2]
[420731575,1776508246046,-151.0,0.0001,2]
[420731576,1776508246060,-2382.93220467,0.0001,2]
[420731577,1776508246101,-13770.06779533,0.0001,2]
[420731578,1776508246114,-151.0,0.0001,2]
[420731579,1776508246127,-2000.0,0.0001,2]
[420731580,1776508246140,-559.61147845,0.0001,2]
[420731581,1776508246153,-200.0,0.0001,2]
[420731582,1776508246166,-500.0,0.0001,2]
[420731583,1776508246179,-500.0,0.0001,2]
[420731584,1776508246192,-500.0,0.0001,2]
[420731585,1776508246205,-500.0,0.0001,2]
[420731586,1776508246217,-500.0,0.0001,2]
[420731587,1776508246230,-500.0,0.0001,2]
[420731588,1776508246242,-500.0,0.0001,2]
[420731589,1776508246255,-500.0,0.0001,2]
[420731590,1776508246268,-500.0,0.0001,2]
[420731591,1776508246281,-500.0,0.0001,2]
[420731592,1776508246293,-500.0,0.0001,2]
[420731593,1776508246307,-500.0,0.0001,2]
[420731594,1776508246319,-151.0,0.0001,2]
[420731595,1776508246331,-151.0,0.0001,2]
[420731596,1776508246344,-151.0,0.0001,2]
[420731598,1776508246357,-151.0,0.0001,2]
[420731601,1776508246370,-151.0,0.0001,2]
[420731602,1776508246383,-151.0,0.0001,2]
[420731603,1776508246396,-151.0,0.0001,2]
[420731604,1776508246408,-151.0,0.0001,2]
[420731606,1776508246421,-151.0,0.0001,2]
[420731607,1776508246434,-151.0,0.0001,2]
[420731608,1776508246446,-500.0,0.0001,2]
[420731609,1776508246459,-151.0,0.0001,2]
[420731610,1776508246470,-151.0,0.0001,2]
[420731612,1776508246484,-500.0,0.0001,2]
[420731613,1776508246496,-500.0,0.0001,2]
[420731614,1776508246509,-500.0,0.0001,2]
[420731615,1776508246521,-500.0,0.0001,2]
[420731616,1776508246534,-500.0,0.0001,2]
[420731618,1776508246546,-500.0,0.0001,2]
[420731619,1776508246558,-500.0,0.0001,2]
[420731620,1776508246570,-500.0,0.0001,2]
[420731621,1776508246583,-500.0,0.0001,2]
[420731622,1776508246595,-500.0,0.0001,2]
[420731623,1776508246607,-500.0,0.0001,2]
[420731624,1776508246620,-1337.30371513,0.0001,2]
[420731625,1776508246632,-151.0,0.0001,2]
[420731626,1776508246644,-151.0,0.0001,2]
[420731627,1776508246656,-500.0,0.0001,2]
[420731628,1776508246668,-1000.0,0.0001,2]
[420731629,1776508246681,-1000.0,0.0001,2]
[420731630,1776508246693,-1000.0,0.0001,2]
[420731631,1776508246705,-1000.0,0.0001,2]
[420731632,1776508246718,-1000.0,0.0001,2]
[420731633,1776508246730,-150.0,0.0001,3]
[420731634,1776508246742,-150.0,0.0001,3]
[420731635,1776508246753,-167.0,0.0001,3]
[420731636,1776508246767,-1000.0,0.0001,2]
[420731637,1776508246779,-3197.1566476,0.00010025,2]
[420731638,1776508246792,-350.0,0.00010032,2]
[420731639,1776508246803,-512.66,0.0001008,2]
[420731640,1776508246816,-200.0,0.00010137,3]
[420731641,1776508246828,-5531.0,0.000102,3]
[420731642,1776508246841,-2000.0,0.000102,2]
[420731643,1776508246852,-151.0,0.00010203,2]
[420731644,1776508246865,-480.53610694,0.00010232,2]
[420731645,1776508246878,-10000.0,0.00010246,2]
[420731646,1776508246890,-166.66,0.00010284,2]
[420731647,1776508246903,-142778.59960768,0.000103,2]
[420731648,1776508246916,-151.0,0.000103,2]
[420731649,1776508246928,-150.0,0.00010319,30]
[420731650,1776508246941,-1600.0,0.00010325,2]
[420731651,1776508246953,-512.66,0.00010354,2]
[420731652,1776508246965,-1481.23780761,0.00010354,2]
[420731653,1776508246977,-217.15233878,0.00010354,2]
[420731654,1776508246989,-200.0,0.00010354,2]
[420731655,1776508247001,-187.78006525,0.00010354,2]
[420731656,1776508247026,-799.54513345,0.00010354,2]
[420731657,1776508247042,-217.15233878,0.00010354,2]
[420731658,1776508247056,-217.15233878,0.00010354,2]
[420731659,1776508247071,-301.00069851,0.00010354,2]
[420731660,1776508247087,-2000.0,0.000104,2]
[420731661,1776508247101,-2000.0,0.00010418,2]
[420731662,1776508247115,-165.32,0.00010418,2]
[420731663,1776508247130,-4355.36268121,0.000105,5]
[420731669,1776508248480,-1175.63731879,0.000105,5]
[420731670,1776508248490,-700.0,0.00010514,2]
[420731671,1776508248499,-200.0,0.00010548,2]
[420731672,1776508248509,-389.1003822,0.00010548,2]
[420731673,1776508248518,-151.0,0.00010548,2]
[420731674,1776508248527,-2000.0,0.000106,2]
[420731675,1776508248536,-512.69,0.00010628,2]
[420731676,1776508248546,-32619.57230051,0.000107,2]
[420731677,1776508248561,-925.03709536,0.000107,2]
[420731678,1776508248573,-1911.16944807,0.000107,2]
[420731679,1776508248588,-4541.51549796,0.000107,2]
[420731680,1776508320905,-150.0,0.00010949,30]
[420731681,1776508320935,-150.0,0.00011579,30]
[420731682,1776508320964,-173.88,0.00012209,30]
[420731683,1776508320989,-217.34,0.00012838,30]
[420731684,1776508321016,-260.81,0.00013468,30]
[420731685,1776508321060,-150.0,0.00013699,30]
[420731686,1776508321082,-150.0,0.00013699,30]
[420731687,1776508321104,-150.0,0.00013699,30]
[420731688,1776508321126,-210.0,0.00013699,30]
[420731689,1776508321151,-304.28,0.00014098,30]
[420731690,1776508321178,-83.69,0.00014728,30]
[420731731,1776509342613,-1600.0,7.502e-05,2]
[420731732,1776509342637,-248.0,7.502e-05,2]
[420731734,1776509431781,-166.66,7.727e-05,2]
[420731735,1776509431791,-300.0,7.914e-05,2]
[420731736,1776509431800,-300.0,7.914e-05,2]
[420731737,1776509431810,-150.0,7.915e-05,2]
[420731738,1776509431820,-150.1208185,7.915e-05,2]
[420731739,1776509431829,-150.0,7.915e-05,2]
[420731740,1776509431838,-150.0,7.915e-05,2]
[420731741,1776509431848,-150.0,7.915e-05,2]
[420731742,1776509431858,-150.0,7.915e-05,2]
[420731743,1776509431868,-150.0,7.915e-05,2]
[420731744,1776509431877,-150.0,7.915e-05,2]
[420731745,1776509431887,-150.0,7.915e-05,2]
[420731746,1776509431896,-150.0,7.915e-05,2]
[420731747,1776509431907,-150.0,7.974e-05,2]
[420731748,1776509431916,-150.0,7.988e-05,2]
[420731749,1776509431926,-150.0,7.995e-05,2]
[420731750,1776509431936,-150.0,8.003e-05,2]
[420731751,1776509431945,-150.0,8.013e-05,2]
[420731752,1776509431955,-150.0,8.032e-05,2]
[420731753,1776509431964,-166.66,8.046e-05,2]
[420731754,1776509431973,-150.0,8.062e-05,2]
[420731755,1776509431983,-150.0,8.075e-05,2]
[420731756,1776509431992,-1236.0,8.083e-05,2]
[420731757,1776509432001,-264.0,8.083e-05,2]
[420731758,1776509432011,-150.0,8.091e-05,2]
[420731759,1776509432020,-150.0,8.091e-05,2]
[420731760,1776509432030,-150.0,8.091e-05,2]
[420731761,1776509432040,-150.0,8.091e-05,2]
[420731762,1776509432051,-1013.0,8.099e-05,2]
[420731763,1776509432061,-495.0,8.099e-05,2]
[420731764,1776509432071,-150.0,8.111e-05,2]
[420731765,1776509432081,-150.0,8.135e-05,2]
[420731766,1776509432091,-150.0,8.15e-05,2]
[420731767,1776509432101,-150.0,8.155e-05,2]
[420731768,1776509432113,-150.0,8.179e-05,2]
[420731769,1776509432123,-150.0,8.208e-05,2]
[420731770,1776509432133,-150.0,8.208e-05,2]
[420731771,1776509432143,-150.0,8.208e-05,2]
[420731772,1776509432152,-150.0,8.235e-05,2]
[420731773,1776509432162,-150.0,8.267e-05,2]
[420731774,1776509432172,-150.0,8.267e-05,2]
[420731775,1776509432181,-150.0,8.267e-05,2]
[420731776,1776509432190,-150.0,8.267e-05,2]
[420731777,1776509432199,-150.0,8.282e-05,2]
[420731778,1776509432209,-150.0,8.306e-05,2]
[420731779,1776509432218,-150.0,8.306e-05,2]
[420731780,1776509432227,-150.0,8.315e-05,2]
[420731781,1776509432239,-150.0,8.325e-05,2]
[420731782,1776509432249,-150.0,8.355e-05,2]
[420731783,1776509432260,-150.0,8.355e-05,2]
[420731784,1776509432270,-150.0,8.355e-05,2]
[420731785,1776509432281,-166.66,8.365e-05,2]
[420731786,1776509432291,-150.0,8.384e-05,2]
[420731787,1776509432300,-150.0,8.395e-05,2]
[420731788,1776509432311,-150.0,8.404e-05,2]
[420731789,1776509432321,-21.08815812,8.428e-05,2]
[420731799,1776509440655,-128.91184188,8.428e-05,2]
[420731800,1776509440667,-1600.0,8.44e-05,2]
[420731801,1776509440677,-150.0,8.443e-05,2]
[420731802,1776509440686,-150.0,8.443e-05,2]
[420731803,1776509440696,-150.0,8.443e-05,2]
[420731804,1776509440705,-150.0,8.443e-05,2]
[420731805,1776509440715,-150.0,8.475e-05,2]
[420731806,1776509440724,-250.0,8.5e-05,2]
[420731807,1776509440734,-150.0,8.501e-05,2]
[420731808,1776509440744,-150.0,8.501e-05,2]
[420731809,1776509440753,-150.0,8.501e-05,2]
[420731810,1776509440763,-50.97185895,8.531e-05,2]
[420731811,1776509440774,-99.02814105,8.531e-05,2]
[420731812,1776509440784,-150.0,8.555e-05,2]
[420731813,1776509440794,-38.661453,8.56e-05,2]
[420731814,1776509440818,-111.338547,8.56e-05,2]
[420731815,1776509440827,-150.0,8.575e-05,2]
[420731816,1776509440838,-150.0,8.599e-05,2]
[420731817,1776509440847,-150.0,8.619e-05,2]
[420731818,1776509440857,-150.0,8.619e-05,2]
[420731819,1776509440867,-150.0,8.619e-05,2]
[420731820,1776509440876,-150.0,8.619e-05,2]
[420731821,1776509440886,-150.0,8.635e-05,2]
[420731822,1776509440896,-150.0,8.648e-05,2]
[420731823,1776509440906,-158.04,8.655e-05,2]
[420731824,1776509440916,-167.84000396,8.673e-05,2]
[420731825,1776509440926,-500.42337708,8.673e-05,2]
[420731826,1776509440936,-501.08118823,8.673e-05,2]
[420731827,1776509440945,-500.0,8.673e-05,2]
[420731828,1776509440955,-500.0,8.673e-05,2]
[420731829,1776509440964,-500.0,8.673e-05,2]
[420731830,1776509440973,-582.48941189,8.673e-05,2]
[420731831,1776509440983,-500.0,8.673e-05,2]
[420731834,1776509441002,-500.0,8.673e-05,2]
[420731835,1776509441013,-500.0,8.673e-05,2]
[420731836,1776509441023,-501.2455248,8.673e-05,2]
[420731837,1776509441033,-150.0,8.677e-05,2]
[420731838,1776509441044,-166.66,8.683e-05,2]
[420731839,1776509441054,-151.0,8.694e-05,2]
[420731840,1776509441064,-500.0,8.696e-05,2]
[420731841,1776509441074,-500.0,8.696e-05,2]
[420731842,1776509441083,-500.0,8.696e-05,2]
[420731843,1776509441094,-500.0,8.696e-05,2]
[420731844,1776509441104,-500.0,8.696e-05,2]
[420731845,1776509441114,-500.0,8.696e-05,2]
[420731846,1776509441124,-500.0,8.696e-05,2]
[420731847,1776509441134,-500.0,8.696e-05,2]
[420731848,1776509441143,-380.41865765,8.696e-05,2]
[420731849,1776509441154,-500.0,8.696e-05,2]
[420731850,1776509441165,-500.0,8.696e-05,2]
[420731851,1776509441175,-500.0,8.696e-05,2]
[420731852,1776509441184,-500.0,8.696e-05,2]
[420731853,1776509441194,-500.0,8.696e-05,2]
[420731854,1776509441204,-500.0,8.696e-05,2]
[420731855,1776509441215,-500.0,8.696e-05,2]
[420731856,1776509441224,-156.18219195,8.696e-05,2]
[420731857,1776509441234,-500.0,8.696e-05,2]
[420731858,1776509441243,-500.0,8.696e-05,2]
[420731859,1776509441253,-500.0,8.696e-05,2]
[420731860,1776509441263,-500.0,8.696e-05,2]
[420731861,1776509441272,-500.0,8.696e-05,2]
[420731862,1776509441284,-500.0,8.696e-05,2]
[420731863,1776509441294,-500.0,8.696e-05,2]
[420731864,1776509441305,-500.0,8.696e-05,2]
[420731865,1776509441315,-500.0,8.696e-05,2]